[Event "Early-Titled-Tuesday-Blitz-March-19-2024"]
[Site "Chess.com"]
[Date "2024.03.19"]
[Round "9"]
[White "RantomOpening"]
[Black "UK_23"]
[Result "1/2-1/2"]
[WhiteElo "2597"]
[BlackElo "2402"]
[TimeControl "180+1"]
[EndTime "9:47:41 PDT"]
[Termination "Game drawn - insufficient material"]

1. Nc3 {[%clk 0:02:32.6]} 1... e5 {[%clk 0:02:59.3]} 2. Nf3 {[%clk 0:02:31.6]}
2... Nc6 {[%clk 0:02:57.6]} 3. d4 {[%clk 0:02:31.4]} 3... exd4 {[%clk
0:02:55.6]} 4. Nxd4 {[%clk 0:02:32.3]} 4... Nf6 {[%clk 0:02:55.4]} 5. Nxc6
{[%clk 0:02:30.7]} 5... bxc6 {[%clk 0:02:56.3]} 6. e4 {[%clk 0:02:30.6]} 6...
Bb4 {[%clk 0:02:53.5]} 7. Bd3 {[%clk 0:02:30.8]} 7... d5 {[%clk 0:02:53.2]} 8.
exd5 {[%clk 0:02:24.4]} 8... O-O {[%clk 0:02:52.9]} 9. O-O {[%clk 0:02:23.3]}
9... Bg4 {[%clk 0:02:52.5]} 10. f3 {[%clk 0:02:19.2]} 10... Bh5 {[%clk
0:02:52.5]} 11. dxc6 {[%clk 0:02:16.9]} 11... Qd4+ {[%clk 0:02:52.1]} 12. Kh1
{[%clk 0:02:15.9]} 12... Bxc3 {[%clk 0:02:52.7]} 13. bxc3 {[%clk 0:02:15.7]}
13... Qxc3 {[%clk 0:02:53.6]} 14. Rb1 {[%clk 0:02:15.7]} 14... Qxc6 {[%clk
0:02:53.3]} 15. Bb2 {[%clk 0:02:13.8]} 15... Bg6 {[%clk 0:02:51.2]} 16. Bxg6
{[%clk 0:02:10]} 16... hxg6 {[%clk 0:02:52.1]} 17. Bxf6 {[%clk 0:01:58.5]} 17...
gxf6 {[%clk 0:02:51.5]} 18. Qe2 {[%clk 0:01:48.7]} 18... Rfe8 {[%clk 0:02:49.5]}
19. Qf2 {[%clk 0:01:48.5]} 19... Kg7 {[%clk 0:02:47.5]} 20. Rfe1 {[%clk
0:01:45.4]} 20... Qc4 {[%clk 0:02:43.3]} 21. Rxe8 {[%clk 0:01:37.2]} 21... Rxe8
{[%clk 0:02:44.2]} 22. Qxa7 {[%clk 0:01:36.2]} 22... Qxc2 {[%clk 0:02:40.7]} 23.
Rg1 {[%clk 0:01:34.6]} 23... Qc4 {[%clk 0:02:22.3]} 24. a4 {[%clk 0:01:31.2]}
24... Re6 {[%clk 0:02:17.2]} 25. h3 {[%clk 0:01:16.4]} 25... Ra6 {[%clk
0:02:16.8]} 26. Qe3 {[%clk 0:01:16.3]} 26... Rxa4 {[%clk 0:02:12.1]} 27. Rc1
{[%clk 0:01:15.8]} 27... Qf4 {[%clk 0:01:56]} 28. Qxf4 {[%clk 0:01:15.4]} 28...
Rxf4 {[%clk 0:01:56.9]} 29. Rxc7 {[%clk 0:01:15.2]} 29... Ra4 {[%clk 0:01:54.1]}
30. Kh2 {[%clk 0:01:15.5]} 30... g5 {[%clk 0:01:53.9]} 31. g4 {[%clk 0:01:13]}
31... Kg6 {[%clk 0:01:52.5]} 32. Kg3 {[%clk 0:01:13.6]} 32... Ra3 {[%clk
0:01:52.1]} 33. Rc8 {[%clk 0:01:13.3]} 33... Kg7 {[%clk 0:01:50.9]} 34. Rb8
{[%clk 0:01:10.6]} 34... Rc3 {[%clk 0:01:49.9]} 35. Rb7 {[%clk 0:01:10.6]} 35...
Kg6 {[%clk 0:01:49.3]} 36. Rb6 {[%clk 0:01:11.1]} 36... Kg7 {[%clk 0:01:48.6]}
37. Rb5 {[%clk 0:01:11.8]} 37... Kg6 {[%clk 0:01:48.4]} 38. Rb4 {[%clk
0:01:12.4]} 38... Kg7 {[%clk 0:01:48.3]} 39. Rb2 {[%clk 0:01:13]} 39... Kg6
{[%clk 0:01:48.5]} 40. Rb1 {[%clk 0:01:13.3]} 40... Kg7 {[%clk 0:01:48.9]} 41.
Ra1 {[%clk 0:01:13.5]} 41... Kg6 {[%clk 0:01:49.2]} 42. Rd1 {[%clk 0:01:13.6]}
42... Kg7 {[%clk 0:01:49.6]} 43. Re1 {[%clk 0:01:14.1]} 43... Ra3 {[%clk
0:01:49.2]} 44. Rf1 {[%clk 0:01:14.5]} 44... Rb3 {[%clk 0:01:49.5]} 45. Rg1
{[%clk 0:01:14.8]} 45... Ra3 {[%clk 0:01:44.6]} 46. Rh1 {[%clk 0:01:14.9]} 46...
Rb3 {[%clk 0:01:44.8]} 47. Rh2 {[%clk 0:01:15.4]} 47... Ra3 {[%clk 0:01:44.9]}
48. Rg2 {[%clk 0:01:16]} 48... Rb3 {[%clk 0:01:45.2]} 49. Rf2 {[%clk 0:01:16.6]}
49... Ra3 {[%clk 0:01:45.7]} 50. h4 {[%clk 0:01:17.1]} 50... gxh4+ {[%clk
0:01:44.4]} 51. Kxh4 {[%clk 0:01:18]} 51... Kg6 {[%clk 0:01:44.7]} 52. f4 {[%clk
0:01:15.7]} 52... f5 {[%clk 0:01:44.7]} 53. g5 {[%clk 0:01:13.3]} 53... f6
{[%clk 0:01:41.9]} 54. gxf6 {[%clk 0:01:10.4]} 54... Kxf6 {[%clk 0:01:42.1]} 55.
Rb2 {[%clk 0:01:10.8]} 55... Ra6 {[%clk 0:01:38]} 56. Kh5 {[%clk 0:01:09.4]}
56... Rc6 {[%clk 0:01:36.8]} 57. Ra2 {[%clk 0:01:06.6]} 57... Rb6 {[%clk
0:01:34.9]} 58. Ra8 {[%clk 0:01:06.3]} 58... Rb1 {[%clk 0:01:31.9]} 59. Ra6+
{[%clk 0:01:06]} 59... Ke7 {[%clk 0:01:24.5]} 60. Kg5 {[%clk 0:01:06.1]} 60...
Rb5 {[%clk 0:01:21]} 61. Rc6 {[%clk 0:01:05.9]} 61... Ra5 {[%clk 0:01:18.7]} 62.
Rh6 {[%clk 0:01:06]} 62... Rb5 {[%clk 0:01:17.8]} 63. Rh2 {[%clk 0:01:05.5]}
63... Ra5 {[%clk 0:01:17.8]} 64. Re2+ {[%clk 0:01:05.7]} 64... Kf7 {[%clk
0:01:18.3]} 65. Rc2 {[%clk 0:01:04.1]} 65... Rb5 {[%clk 0:01:18.6]} 66. Rc7+
{[%clk 0:01:03.9]} 66... Ke6 {[%clk 0:01:19.1]} 67. Rh7 {[%clk 0:01:02.8]} 67...
Ra5 {[%clk 0:01:17.7]} 68. Rh6+ {[%clk 0:01:03.2]} 68... Kf7 {[%clk 0:01:17.6]}
69. Rb6 {[%clk 0:01:01.6]} 69... Rc5 {[%clk 0:01:16.1]} 70. Rb4 {[%clk
0:01:01.9]} 70... Ra5 {[%clk 0:01:16]} 71. Rb3 {[%clk 0:01:02.3]} 71... Rc5
{[%clk 0:01:16.2]} 72. Rb2 {[%clk 0:01:02.9]} 72... Ra5 {[%clk 0:01:16.4]} 73.
Rb1 {[%clk 0:01:03.3]} 73... Rc5 {[%clk 0:01:15]} 74. Ra1 {[%clk 0:01:03.7]}
74... Rb5 {[%clk 0:01:15.3]} 75. Ra6 {[%clk 0:01:03]} 75... Rc5 {[%clk
0:01:15.1]} 76. Ra7+ {[%clk 0:01:03.3]} 76... Ke6 {[%clk 0:01:15]} 77. Kg6
{[%clk 0:01:03.9]} 77... Rb5 {[%clk 0:01:09.8]} 78. Ra1 {[%clk 0:00:59.1]} 78...
Rc5 {[%clk 0:01:09.5]} 79. Re1+ {[%clk 0:00:59]} 79... Kd7 {[%clk 0:01:07.4]}
80. Kf7 {[%clk 0:00:58.8]} 80... Rc4 {[%clk 0:01:06.5]} 81. Rd1+ {[%clk
0:00:58.4]} 81... Kc6 {[%clk 0:01:05.5]} 82. Ke6 {[%clk 0:00:55.8]} 82... Rxf4
{[%clk 0:01:04.6]} 83. Ke5 {[%clk 0:00:56.3]} 83... Rf2 {[%clk 0:01:04.5]} 84.
Rd6+ {[%clk 0:00:55.3]} 84... Kc5 {[%clk 0:01:04.7]} 85. Rd8 {[%clk 0:00:55]}
85... f4 {[%clk 0:01:04.5]} 86. Ke4 {[%clk 0:00:54.8]} 86... Rf1 {[%clk
0:01:04.1]} 87. Rd7 {[%clk 0:00:53.8]} 87... Kc6 {[%clk 0:01:04.3]} 88. Rd8
{[%clk 0:00:53.9]} 88... Kc7 {[%clk 0:01:04.6]} 89. Rd2 {[%clk 0:00:53]} 89...
Kc6 {[%clk 0:01:04.7]} 90. Ke5 {[%clk 0:00:51.3]} 90... f3 {[%clk 0:01:03.4]}
91. Kf4 {[%clk 0:00:51.4]} 91... f2 {[%clk 0:01:03.1]} 92. Kf3 {[%clk 0:00:52]}
92... Kc5 {[%clk 0:01:03.1]} 93. Kg2 {[%clk 0:00:49.9]} 93... Rc1 {[%clk
0:01:01.8]} 94. Kxf2 {[%clk 0:00:49.2]} 94... Kc4 {[%clk 0:01:01.8]} 95. Rd8
{[%clk 0:00:49.8]} 95... Ra1 {[%clk 0:01:01.3]} 96. Ke3 {[%clk 0:00:50]} 96...
Kc5 {[%clk 0:01:00.4]} 97. Rc8+ {[%clk 0:00:50.3]} 97... Kd6 {[%clk 0:01:00.6]}
98. Rh8 {[%clk 0:00:50.4]} 98... Ra4 {[%clk 0:00:59.7]} 99. Rh6+ {[%clk
0:00:49.1]} 99... Ke5 {[%clk 0:00:59.5]} 100. Rh5+ {[%clk 0:00:50]} 100... Kf6
{[%clk 0:00:59.8]} 101. Rb5 {[%clk 0:00:49.9]} 101... Ke6 {[%clk 0:00:59.7]}
102. Kf3 {[%clk 0:00:50]} 102... Kf6 {[%clk 0:00:59.7]} 103. Rb3 {[%clk
0:00:39.1]} 103... Ke6 {[%clk 0:00:59.7]} 104. Ke3 {[%clk 0:00:39.3]} 104... Kd6
{[%clk 0:01:00]} 105. Kd3 {[%clk 0:00:39.6]} 105... Ke6 {[%clk 0:01:00.1]} 106.
Rb1 {[%clk 0:00:39.7]} 106... Kd6 {[%clk 0:01:00.4]} 107. Kc3 {[%clk 0:00:40]}
107... Rh4 {[%clk 0:01:00.1]} 108. Rg1 {[%clk 0:00:39.6]} 108... Kc5 {[%clk
0:00:59.2]} 109. Rg5+ {[%clk 0:00:39.2]} 109... Kc6 {[%clk 0:00:59.5]} 110. Rg6+
{[%clk 0:00:39.9]} 110... Kc5 {[%clk 0:00:59.4]} 111. Rg8 {[%clk 0:00:40.8]}
111... Kc6 {[%clk 0:00:59.2]} 112. Kd2 {[%clk 0:00:41.7]} 112... Kd5 {[%clk
0:00:59.3]} 113. Ra8 {[%clk 0:00:41.5]} 113... Kd6 {[%clk 0:00:59.1]} 114. Ra6+
{[%clk 0:00:41]} 114... Kc5 {[%clk 0:00:57]} 115. Ra7 {[%clk 0:00:41.9]} 115...
Kb6 {[%clk 0:00:46.6]} 116. Ra8 {[%clk 0:00:41.5]} 116... Kc5 {[%clk 0:00:46.7]}
117. Ke3 {[%clk 0:00:41.4]} 117... Kd5 {[%clk 0:00:46.9]} 118. Ra6 {[%clk
0:00:40.4]} 118... Kc5 {[%clk 0:00:46.8]} 119. Ra5+ {[%clk 0:00:40.4]} 119...
Kd6 {[%clk 0:00:46.8]} 120. Ra6+ {[%clk 0:00:40.1]} 120... Kc5 {[%clk
0:00:46.9]} 121. Kf3 {[%clk 0:00:40.8]} 121... Rb4 {[%clk 0:00:46.5]} 122. Rg6
{[%clk 0:00:39.4]} 122... Kd5 {[%clk 0:00:46.3]} 123. Ke3 {[%clk 0:00:38.7]}
123... Ke5 {[%clk 0:00:45.7]} 124. Rg8 {[%clk 0:00:38.3]} 124... Rb3+ {[%clk
0:00:45.2]} 125. Kd2 {[%clk 0:00:38.6]} 125... Rh3 {[%clk 0:00:44.5]} 126. Rg2
{[%clk 0:00:38.1]} 126... Kd4 {[%clk 0:00:44.7]} 127. Rg4+ {[%clk 0:00:37.2]}
127... Kd5 {[%clk 0:00:44.8]} 128. Ra4 {[%clk 0:00:38.1]} 128... Kc5 {[%clk
0:00:44.2]} 129. Ra8 {[%clk 0:00:37.7]} 129... Kd5 {[%clk 0:00:44.4]} 130. Rd8+
{[%clk 0:00:37.6]} 130... Kc5 {[%clk 0:00:44.7]} 131. Rd7 {[%clk 0:00:37.2]}
131... Kc6 {[%clk 0:00:44.9]} 132. Rd3 {[%clk 0:00:37.3]} 132... Rxd3+ {[%clk
0:00:43.5]} 133. Kxd3 {[%clk 0:00:38]} 1/2-1/2

[Event "Early-Titled-Tuesday-Blitz-March-19-2024"]
[Site "Chess.com"]
[Date "2024.03.19"]
[Round "9"]
[White "platy3"]
[Black "rezamahdavi2008"]
[Result "1/2-1/2"]
[WhiteElo "2953"]
[BlackElo "2862"]
[TimeControl "180+1"]
[EndTime "9:47:47 PDT"]
[Termination "Game drawn by stalemate"]

1. e4 {[%clk 0:03:00.9]} 1... c5 {[%clk 0:02:59.8]} 2. Nf3 {[%clk 0:03:01.3]}
2... d6 {[%clk 0:03:00.2]} 3. d4 {[%clk 0:03:01.7]} 3... cxd4 {[%clk 0:03:01]}
4. Nxd4 {[%clk 0:03:02.6]} 4... Nf6 {[%clk 0:03:01.7]} 5. Bd3 {[%clk 0:03:03.2]}
5... Nc6 {[%clk 0:02:58.7]} 6. Be3 {[%clk 0:03:02.9]} 6... Ng4 {[%clk
0:02:57.5]} 7. Nxc6 {[%clk 0:02:59.4]} 7... bxc6 {[%clk 0:02:57.3]} 8. Bd2
{[%clk 0:03:00.1]} 8... g6 {[%clk 0:02:38.7]} 9. Bc3 {[%clk 0:02:58.7]} 9... e5
{[%clk 0:02:39.4]} 10. h3 {[%clk 0:02:55.5]} 10... Nf6 {[%clk 0:02:37.2]} 11.
O-O {[%clk 0:02:54.5]} 11... Bg7 {[%clk 0:02:37.4]} 12. Nd2 {[%clk 0:02:54.9]}
12... O-O {[%clk 0:02:34.4]} 13. b3 {[%clk 0:02:43.2]} 13... Be6 {[%clk
0:02:31.8]} 14. Bb2 {[%clk 0:02:42.1]} 14... Nh5 {[%clk 0:02:31.1]} 15. Re1
{[%clk 0:02:36.3]} 15... Nf4 {[%clk 0:02:28.7]} 16. Bf1 {[%clk 0:02:35.9]} 16...
Qg5 {[%clk 0:02:22.4]} 17. Kh1 {[%clk 0:02:35.8]} 17... Rad8 {[%clk 0:02:18.6]}
18. c4 {[%clk 0:02:34.8]} 18... f5 {[%clk 0:02:16.2]} 19. Nf3 {[%clk 0:02:25.4]}
19... Qh5 {[%clk 0:02:11.3]} 20. Nd2 {[%clk 0:02:21.8]} 20... Qh6 {[%clk
0:02:06.1]} 21. exf5 {[%clk 0:02:16.2]} 21... Bxf5 {[%clk 0:02:07]} 22. Ne4
{[%clk 0:02:08.9]} 22... d5 {[%clk 0:01:52.8]} 23. cxd5 {[%clk 0:02:05.8]} 23...
cxd5 {[%clk 0:01:53.7]} 24. Ng3 {[%clk 0:02:05.5]} 24... e4 {[%clk 0:01:51]} 25.
Bxg7 {[%clk 0:02:01.5]} 25... Qxg7 {[%clk 0:01:51.9]} 26. Qd2 {[%clk 0:01:57.5]}
26... Ne6 {[%clk 0:01:45.8]} 27. Rad1 {[%clk 0:01:53.2]} 27... h5 {[%clk
0:01:45.6]} 28. Qa5 {[%clk 0:01:43.8]} 28... h4 {[%clk 0:01:32.4]} 29. Nxf5
{[%clk 0:01:42.1]} 29... Rxf5 {[%clk 0:01:33.3]} 30. f3 {[%clk 0:01:05.4]} 30...
Qf6 {[%clk 0:01:05.8]} 31. fxe4 {[%clk 0:00:59.9]} 31... dxe4 {[%clk 0:01:05.8]}
32. Rxd8+ {[%clk 0:00:57.5]} 32... Nxd8 {[%clk 0:01:06.7]} 33. Qa6 {[%clk
0:00:57.6]} 33... Qxa6 {[%clk 0:00:45.5]} 34. Bxa6 {[%clk 0:00:58.5]} 34... Re5
{[%clk 0:00:45.7]} 35. Kg1 {[%clk 0:00:51]} 35... Kg7 {[%clk 0:00:41.1]} 36. Kf2
{[%clk 0:00:51]} 36... Ra5 {[%clk 0:00:40.2]} 37. Bc4 {[%clk 0:00:49.3]} 37...
Rxa2+ {[%clk 0:00:40.3]} 38. Kf1 {[%clk 0:00:49.3]} 38... Nb7 {[%clk 0:00:29.7]}
39. Rxe4 {[%clk 0:00:49.4]} 39... Nd6 {[%clk 0:00:30.4]} 40. Rxh4 {[%clk
0:00:49.5]} 40... Nf5 {[%clk 0:00:29.4]} 41. Rf4 {[%clk 0:00:44.7]} 41... Ne3+
{[%clk 0:00:29.8]} 42. Kg1 {[%clk 0:00:45.2]} 42... Rxg2+ {[%clk 0:00:30.4]} 43.
Kh1 {[%clk 0:00:45.6]} 43... Ra2 {[%clk 0:00:31]} 44. Bd3 {[%clk 0:00:41.9]}
44... Rb2 {[%clk 0:00:24.7]} 45. Rf3 {[%clk 0:00:39.9]} 45... Nd5 {[%clk
0:00:23.7]} 46. Bc4 {[%clk 0:00:38.2]} 46... Nf6 {[%clk 0:00:24.3]} 47. Kg1
{[%clk 0:00:37.8]} 47... a5 {[%clk 0:00:22.5]} 48. Kf1 {[%clk 0:00:37.2]} 48...
Rc2 {[%clk 0:00:22.5]} 49. Rf4 {[%clk 0:00:34.7]} 49... Nh5 {[%clk 0:00:19.4]}
50. Rg4 {[%clk 0:00:32.5]} 50... Rh2 {[%clk 0:00:15]} 51. h4 {[%clk 0:00:22.1]}
51... Nf6 {[%clk 0:00:09.8]} 52. Rd4 {[%clk 0:00:22.3]} 52... Kh6 {[%clk
0:00:08.7]} 53. Bd3 {[%clk 0:00:17.7]} 53... Kh5 {[%clk 0:00:06.1]} 54. Rd6
{[%clk 0:00:17.6]} 54... Ng4 {[%clk 0:00:06.7]} 55. Be2 {[%clk 0:00:08.1]} 55...
Rf2+ {[%clk 0:00:06.4]} 56. Ke1 {[%clk 0:00:08.3]} 56... Rf4 {[%clk 0:00:07.3]}
57. Rd5+ {[%clk 0:00:05.6]} 57... Kxh4 {[%clk 0:00:06.7]} 58. Rxa5 {[%clk
0:00:06.5]} 58... Ne3 {[%clk 0:00:04.5]} 59. Re5 {[%clk 0:00:05.5]} 59... Ng2+
{[%clk 0:00:03.4]} 60. Kd2 {[%clk 0:00:05.9]} 60... g5 {[%clk 0:00:04.3]} 61. b4
{[%clk 0:00:05]} 61... Rxb4 {[%clk 0:00:04.2]} 62. Re8 {[%clk 0:00:03.5]} 62...
Nf4 {[%clk 0:00:04.1]} 63. Bf3 {[%clk 0:00:02.4]} 63... Rb2+ {[%clk 0:00:02.6]}
64. Ke3 {[%clk 0:00:02.5]} 64... Rb3+ {[%clk 0:00:03]} 65. Kf2 {[%clk 0:00:03]}
65... Nh3+ {[%clk 0:00:03.6]} 66. Kg2 {[%clk 0:00:03]} 66... Nf4+ {[%clk
0:00:04.3]} 67. Kf2 {[%clk 0:00:03.5]} 67... Rb2+ {[%clk 0:00:05.1]} 68. Ke3
{[%clk 0:00:03.8]} 68... Kg3 {[%clk 0:00:05.8]} 69. Bc6 {[%clk 0:00:03.5]} 69...
Re2+ {[%clk 0:00:05.6]} 70. Kd4 {[%clk 0:00:04.2]} 70... Rd2+ {[%clk 0:00:05]}
71. Ke4 {[%clk 0:00:04.6]} 71... g4 {[%clk 0:00:04.5]} 72. Kf5 {[%clk
0:00:03.6]} 72... Nh3 {[%clk 0:00:04]} 73. Re3+ {[%clk 0:00:03.7]} 73... Kh4
{[%clk 0:00:04.7]} 74. Re4 {[%clk 0:00:04]} 74... Rf2+ {[%clk 0:00:04.3]} 75.
Ke5 {[%clk 0:00:04.7]} 75... Rf8 {[%clk 0:00:04.5]} 76. Bd7 {[%clk 0:00:04.7]}
76... Nf2 {[%clk 0:00:05.2]} 77. Rd4 {[%clk 0:00:04.4]} 77... Kg5 {[%clk
0:00:03]} 78. Bxg4 {[%clk 0:00:03.8]} 78... Nxg4+ {[%clk 0:00:03.9]} 79. Ke6
{[%clk 0:00:04.6]} 79... Re8+ {[%clk 0:00:03.9]} 80. Kd7 {[%clk 0:00:04.6]}
80... Nf6+ {[%clk 0:00:04.6]} 81. Kd6 {[%clk 0:00:04.7]} 81... Kf5 {[%clk
0:00:05.3]} 82. Ra4 {[%clk 0:00:04]} 82... Re6+ {[%clk 0:00:05.1]} 83. Kc7
{[%clk 0:00:04.2]} 83... Nd5+ {[%clk 0:00:05.6]} 84. Kb7 {[%clk 0:00:04.5]}
84... Ke5 {[%clk 0:00:06]} 85. Rh4 {[%clk 0:00:04.2]} 85... Rb6+ {[%clk
0:00:05.7]} 86. Ka7 {[%clk 0:00:04.4]} 86... Rb1 {[%clk 0:00:05.5]} 87. Rh5+
{[%clk 0:00:04.9]} 87... Kd6 {[%clk 0:00:06.2]} 88. Rh6+ {[%clk 0:00:05.4]}
88... Kc5 {[%clk 0:00:07]} 89. Rg6 {[%clk 0:00:05.8]} 89... Ne7 {[%clk
0:00:06.8]} 90. Rg5+ {[%clk 0:00:03.9]} 90... Kd6 {[%clk 0:00:07.5]} 91. Ka6
{[%clk 0:00:03.6]} 91... Kc7 {[%clk 0:00:06.4]} 92. Ka5 {[%clk 0:00:03.4]} 92...
Kc6 {[%clk 0:00:05.5]} 93. Ka4 {[%clk 0:00:03.9]} 93... Nd5 {[%clk 0:00:05.5]}
94. Ka3 {[%clk 0:00:04.4]} 94... Kc5 {[%clk 0:00:06.3]} 95. Rh5 {[%clk
0:00:04.6]} 95... Rb8 {[%clk 0:00:06.8]} 96. Ka2 {[%clk 0:00:04.3]} 96... Kd4
{[%clk 0:00:06]} 97. Ka3 {[%clk 0:00:04.6]} 97... Nc3 {[%clk 0:00:04.5]} 98.
Rh4+ {[%clk 0:00:05]} 98... Kd3 {[%clk 0:00:04.5]} 99. Rh3+ {[%clk 0:00:05.5]}
99... Kc4 {[%clk 0:00:04.9]} 100. Rh4+ {[%clk 0:00:06]} 100... Kc5 {[%clk
0:00:04.4]} 101. Rc4+ {[%clk 0:00:05.7]} 101... Kxc4 {[%clk 0:00:02.7]} 1/2-1/2

[Event "Early-Titled-Tuesday-Blitz-March-19-2024"]
[Site "Chess.com"]
[Date "2024.03.19"]
[Round "10"]
[White "NovakRatko"]
[Black "Predator0608"]
[Result "0-1"]
[WhiteElo "2413"]
[BlackElo "2546"]
[TimeControl "180+1"]
[EndTime "9:51:31 PDT"]
[Termination "Predator0608 won by resignation"]

1. c4 {[%clk 0:02:47.9]} 1... b6 {[%clk 0:03:00.9]} 2. d4 {[%clk 0:02:48]} 2...
Bb7 {[%clk 0:03:01.4]} 3. Nc3 {[%clk 0:02:48.3]} 3... Nf6 {[%clk 0:03:02]} 4. d5
{[%clk 0:02:48.2]} 4... e6 {[%clk 0:03:02]} 5. e4 {[%clk 0:02:48.1]} 5... exd5
{[%clk 0:03:02.5]} 6. cxd5 {[%clk 0:02:47.7]} 6... Bb4 {[%clk 0:03:00]} 7. Bd3
{[%clk 0:02:45.5]} 7... O-O {[%clk 0:02:59.9]} 8. Nf3 {[%clk 0:02:44.9]} 8...
Nxe4 {[%clk 0:03:00.2]} 9. Bxe4 {[%clk 0:02:44.2]} 9... Re8 {[%clk 0:03:00.5]}
10. O-O {[%clk 0:02:42.3]} 10... Bxc3 {[%clk 0:03:00.5]} 11. Bxh7+ {[%clk
0:02:42.7]} 11... Kxh7 {[%clk 0:03:00.9]} 12. bxc3 {[%clk 0:02:42.7]} 12... Qf6
{[%clk 0:02:56.8]} 13. Bb2 {[%clk 0:02:26.4]} 13... Na6 {[%clk 0:02:54.7]} 14.
Qc2+ {[%clk 0:02:26.5]} 14... Kg8 {[%clk 0:02:52.7]} 15. c4 {[%clk 0:02:26.4]}
15... Qh6 {[%clk 0:02:51.3]} 16. Qf5 {[%clk 0:02:02.7]} 16... Nc5 {[%clk
0:02:46.3]} 17. Ng5 {[%clk 0:02:01.7]} 17... Qg6 {[%clk 0:02:44.5]} 18. Qe5
{[%clk 0:01:50.6]} 18... Rxe5 {[%clk 0:01:39.8]} 0-1

[Event "Early-Titled-Tuesday-Blitz-March-19-2024"]
[Site "Chess.com"]
[Date "2024.03.19"]
[Round "10"]
[White "Mikhail_Bryakin"]
[Black "Golubovsky"]
[Result "0-1"]
[WhiteElo "2701"]
[BlackElo "2519"]
[TimeControl "180+1"]
[EndTime "9:52:01 PDT"]
[Termination "Golubovsky won by checkmate"]

1. e4 {[%clk 0:02:51.9]} 1... c5 {[%clk 0:02:59.4]} 2. d4 {[%clk 0:02:47.8]}
2... cxd4 {[%clk 0:02:59.1]} 3. Qxd4 {[%clk 0:02:48.6]} 3... Nc6 {[%clk
0:02:58.7]} 4. Qd3 {[%clk 0:02:49.3]} 4... Nf6 {[%clk 0:02:57.2]} 5. Nc3 {[%clk
0:02:49.6]} 5... d6 {[%clk 0:02:56.1]} 6. Nf3 {[%clk 0:02:49.8]} 6... g6 {[%clk
0:02:56.5]} 7. Be2 {[%clk 0:02:49.2]} 7... Bg7 {[%clk 0:02:56.3]} 8. O-O {[%clk
0:02:44.9]} 8... O-O {[%clk 0:02:55]} 9. Nd5 {[%clk 0:02:45.6]} 9... Nxd5 {[%clk
0:02:42.9]} 10. exd5 {[%clk 0:02:44.7]} 10... Bf5 {[%clk 0:02:42.1]} 11. Qd1
{[%clk 0:02:44.6]} 11... Nb4 {[%clk 0:02:20.8]} 12. c3 {[%clk 0:02:44.1]} 12...
Nc2 {[%clk 0:02:18.4]} 13. g4 {[%clk 0:02:43.9]} 13... Nxa1 {[%clk 0:01:55.5]}
14. gxf5 {[%clk 0:02:43.3]} 14... Qa5 {[%clk 0:01:56.3]} 15. Bg5 {[%clk
0:02:39.3]} 15... Qxa2 {[%clk 0:01:43.1]} 16. Qxa1 {[%clk 0:02:37.2]} 16... Qxd5
{[%clk 0:01:43.2]} 17. Bxe7 {[%clk 0:02:37.6]} 17... Rfe8 {[%clk 0:01:40.6]} 18.
f6 {[%clk 0:02:38.3]} 18... Bxf6 {[%clk 0:01:37.2]} 19. Bxf6 {[%clk 0:02:38.2]}
19... Rxe2 {[%clk 0:01:37.3]} 20. Nd4 {[%clk 0:02:38.8]} 20... Re4 {[%clk
0:01:12.4]} 21. Qd1 {[%clk 0:02:33.2]} 21... h5 {[%clk 0:01:04.6]} 22. Qd3
{[%clk 0:02:26.7]} 22... Rg4+ {[%clk 0:01:01]} 23. Qg3 {[%clk 0:02:26.5]} 23...
Rxg3+ {[%clk 0:01:00.1]} 24. hxg3 {[%clk 0:02:27.4]} 24... Re8 {[%clk
0:00:58.5]} 25. Ra1 {[%clk 0:02:27.3]} 25... a6 {[%clk 0:00:45.6]} 26. Kf1
{[%clk 0:02:25.2]} 26... Qh1# {[%clk 0:00:43.9]} 0-1

[Event "Early-Titled-Tuesday-Blitz-March-19-2024"]
[Site "Chess.com"]
[Date "2024.03.19"]
[Round "10"]
[White "cristiano78"]
[Black "nikitakhoroshev"]
[Result "1-0"]
[WhiteElo "2277"]
[BlackElo "2641"]
[TimeControl "180+1"]
[EndTime "9:52:23 PDT"]
[Termination "cristiano78 won by resignation"]

1. d4 {[%clk 0:02:58.8]} 1... d5 {[%clk 0:02:59.2]} 2. c4 {[%clk 0:02:58.5]}
2... dxc4 {[%clk 0:02:59.4]} 3. e3 {[%clk 0:02:57.5]} 3... e5 {[%clk 0:02:58.5]}
4. Bxc4 {[%clk 0:02:57]} 4... exd4 {[%clk 0:02:58.3]} 5. Nf3 {[%clk 0:02:56.7]}
5... Nf6 {[%clk 0:02:56]} 6. O-O {[%clk 0:02:54.6]} 6... Be7 {[%clk 0:02:53.8]}
7. Nxd4 {[%clk 0:02:52.4]} 7... O-O {[%clk 0:02:53.1]} 8. Nc3 {[%clk 0:02:51.7]}
8... Nbd7 {[%clk 0:02:45]} 9. b3 {[%clk 0:02:49]} 9... Ne5 {[%clk 0:02:44.8]}
10. Be2 {[%clk 0:02:48.8]} 10... c6 {[%clk 0:02:40.7]} 11. Bb2 {[%clk
0:02:48.9]} 11... Bg4 {[%clk 0:02:24.3]} 12. Nf3 {[%clk 0:02:43.4]} 12... Nxf3+
{[%clk 0:02:19.9]} 13. Bxf3 {[%clk 0:02:43.3]} 13... Bxf3 {[%clk 0:02:20]} 14.
Qxf3 {[%clk 0:02:42.9]} 14... Qc7 {[%clk 0:02:18.8]} 15. Rad1 {[%clk 0:02:42.2]}
15... Rad8 {[%clk 0:02:18]} 16. Rxd8 {[%clk 0:02:41.2]} 16... Rxd8 {[%clk
0:02:18.1]} 17. Rd1 {[%clk 0:02:41.6]} 17... Rxd1+ {[%clk 0:02:16.3]} 18. Qxd1
{[%clk 0:02:41.8]} 18... Qd6 {[%clk 0:02:16.4]} 19. Qxd6 {[%clk 0:02:41.7]}
19... Bxd6 {[%clk 0:02:17.3]} 20. g3 {[%clk 0:02:41.7]} 20... Kf8 {[%clk
0:02:17]} 21. f3 {[%clk 0:02:39.7]} 21... Ke7 {[%clk 0:02:15.8]} 22. Kf2 {[%clk
0:02:39.9]} 22... Nd7 {[%clk 0:02:11.9]} 23. e4 {[%clk 0:02:38.4]} 23... f6
{[%clk 0:02:12.2]} 24. Ke2 {[%clk 0:02:38.4]} 24... h5 {[%clk 0:02:10.9]} 25.
Nd1 {[%clk 0:02:37.6]} 25... h4 {[%clk 0:02:09.5]} 26. f4 {[%clk 0:02:35.4]}
26... hxg3 {[%clk 0:02:08.7]} 27. hxg3 {[%clk 0:02:35.4]} 27... Nc5 {[%clk
0:02:07.3]} 28. Kf3 {[%clk 0:02:35.1]} 28... Nd3 {[%clk 0:02:04.4]} 29. Bd4
{[%clk 0:02:33.2]} 29... Nc1 {[%clk 0:02:00.8]} 30. Bxa7 {[%clk 0:02:29.9]}
30... Nxa2 {[%clk 0:02:00.6]} 31. Ne3 {[%clk 0:02:27.8]} 31... Nc1 {[%clk
0:01:59.6]} 32. Nc4 {[%clk 0:02:25.3]} 32... Nxb3 {[%clk 0:01:59.1]} 33. Nxd6
{[%clk 0:02:25.6]} 33... Kxd6 {[%clk 0:01:59.7]} 34. e5+ {[%clk 0:02:25.3]}
34... fxe5 {[%clk 0:01:59.6]} 35. Bb8+ {[%clk 0:02:25.4]} 35... Ke6 {[%clk
0:01:59.1]} 36. Bxe5 {[%clk 0:02:25.7]} 36... Nd2+ {[%clk 0:01:58.5]} 37. Kg4
{[%clk 0:02:23.2]} 37... Nc4 {[%clk 0:01:58.3]} 38. Bxg7 {[%clk 0:02:23]} 38...
b5 {[%clk 0:01:58.2]} 39. f5+ {[%clk 0:02:23.3]} 39... Kf7 {[%clk 0:01:58.5]}
40. Bc3 {[%clk 0:02:22.7]} 40... c5 {[%clk 0:01:58.1]} 41. Kf4 {[%clk
0:02:22.5]} 41... b4 {[%clk 0:01:56.9]} 42. Ba1 {[%clk 0:02:16.1]} 42... Na3
{[%clk 0:01:55.6]} 43. g4 {[%clk 0:02:15.6]} 43... c4 {[%clk 0:01:55.8]} 44. g5
{[%clk 0:02:15.6]} 44... Nc2 {[%clk 0:01:55.1]} 45. g6+ {[%clk 0:02:15.4]} 45...
Kg8 {[%clk 0:01:55.2]} 46. Be5 {[%clk 0:02:12.1]} 46... c3 {[%clk 0:01:52.6]}
47. f6 {[%clk 0:02:12.1]} 47... Ne1 {[%clk 0:01:48.5]} 48. f7+ {[%clk 0:02:11]}
48... Kf8 {[%clk 0:01:49]} 49. Bd6+ {[%clk 0:02:10.5]} 49... Kg7 {[%clk
0:01:47.5]} 50. f8=Q+ {[%clk 0:02:10]} 50... Kxg6 {[%clk 0:01:47.8]} 51. Qg8+
{[%clk 0:02:06.2]} 1-0